[Event "Early-Titled-Tuesday-Blitz-March-26-2024"]
[Site "Chess.com"]
[Date "2024.03.26"]
[Round "2"]
[White "moro182"]
[Black "AquivaRubinstein"]
[Result "1-0"]
[WhiteElo "2886"]
[BlackElo "2598"]
[TimeControl "180+1"]
[EndTime "8:19:15 PDT"]
[Termination "moro182 won by checkmate"]

1. d4 {[%clk 0:03:00.9]} 1... Nf6 {[%clk 0:02:55.5]} 2. Bf4 {[%clk 0:03:01]}
2... d6 {[%clk 0:02:52.2]} 3. Nf3 {[%clk 0:03:00.2]} 3... g6 {[%clk 0:02:52.4]}
4. e3 {[%clk 0:02:58.8]} 4... Bg7 {[%clk 0:02:52.6]} 5. h3 {[%clk 0:02:59.4]}
5... O-O {[%clk 0:02:52.8]} 6. c3 {[%clk 0:02:59.4]} 6... c5 {[%clk 0:02:51.1]}
7. Be2 {[%clk 0:02:57.9]} 7... Be6 {[%clk 0:02:51.2]} 8. Nbd2 {[%clk 0:02:56.2]}
8... Qb6 {[%clk 0:02:49.6]} 9. Qc2 {[%clk 0:02:48.7]} 9... cxd4 {[%clk
0:02:42.5]} 10. exd4 {[%clk 0:02:47.7]} 10... Nc6 {[%clk 0:02:38.1]} 11. O-O
{[%clk 0:02:46.9]} 11... Rac8 {[%clk 0:02:37.2]} 12. Bh2 {[%clk 0:02:40]} 12...
Nxd4 {[%clk 0:02:31.5]} 13. Nxd4 {[%clk 0:02:36]} 13... Qxd4 {[%clk 0:02:31.7]}
14. Rfe1 {[%clk 0:02:32.5]} 14... Bf5 {[%clk 0:02:16.9]} 15. Qxf5 {[%clk
0:02:20.6]} 15... Qxd2 {[%clk 0:02:16.9]} 16. Qb5 {[%clk 0:02:20.8]} 16... a6
{[%clk 0:01:59]} 17. Qb3 {[%clk 0:02:12.6]} 17... Rc7 {[%clk 0:01:50.6]} 18.
Rad1 {[%clk 0:02:05.5]} 18... Qg5 {[%clk 0:01:50.5]} 19. Bf3 {[%clk 0:02:05.3]}
19... h5 {[%clk 0:01:46]} 20. Qb6 {[%clk 0:01:59.7]} 20... Rd7 {[%clk
0:01:22.1]} 21. a4 {[%clk 0:01:49.8]} 21... Rc8 {[%clk 0:01:21.6]} 22. Rd4
{[%clk 0:01:25.7]} 22... Qc5 {[%clk 0:01:19.1]} 23. Qxc5 {[%clk 0:01:25]} 23...
Rxc5 {[%clk 0:01:19.9]} 24. Rb4 {[%clk 0:01:25.7]} 24... Nd5 {[%clk 0:01:10.4]}
25. Rb3 {[%clk 0:01:25.9]} 25... e6 {[%clk 0:01:05.1]} 26. Rd1 {[%clk
0:01:11.8]} 26... Be5 {[%clk 0:00:56.3]} 27. Bxd5 {[%clk 0:01:03.5]} 27... Rxd5
{[%clk 0:00:53.1]} 28. Rxd5 {[%clk 0:01:03.2]} 28... exd5 {[%clk 0:00:53.6]} 29.
Rb4 {[%clk 0:01:03.7]} 29... Bxh2+ {[%clk 0:00:45.8]} 30. Kxh2 {[%clk
0:01:03.6]} 30... Re7 {[%clk 0:00:42.3]} 31. Kg3 {[%clk 0:01:02]} 31... Kg7
{[%clk 0:00:41.7]} 32. Rb6 {[%clk 0:01:02.1]} 32... Rd7 {[%clk 0:00:35.4]} 33.
Kf3 {[%clk 0:01:01.8]} 33... Kf6 {[%clk 0:00:35.8]} 34. Ke3 {[%clk 0:00:59.6]}
34... Ke6 {[%clk 0:00:36.2]} 35. Kd4 {[%clk 0:00:58.6]} 35... Rc7 {[%clk
0:00:36.6]} 36. b3 {[%clk 0:00:58.3]} 36... h4 {[%clk 0:00:34.7]} 37. Rb4 {[%clk
0:00:52.8]} 37... g5 {[%clk 0:00:33.7]} 38. g4 {[%clk 0:00:46.4]} 38... f6
{[%clk 0:00:30.3]} 39. f3 {[%clk 0:00:42.4]} 39... Rd7 {[%clk 0:00:29.6]} 40. a5
{[%clk 0:00:38.2]} 40... Rc7 {[%clk 0:00:29.7]} 41. Ra4 {[%clk 0:00:38.3]} 41...
Rc5 {[%clk 0:00:24.7]} 42. Ra2 {[%clk 0:00:35]} 42... Kf7 {[%clk 0:00:13.7]} 43.
Ra1 {[%clk 0:00:35.2]} 43... Rb5 {[%clk 0:00:13.6]} 44. b4 {[%clk 0:00:35]}
44... b6 {[%clk 0:00:14.1]} 45. axb6 {[%clk 0:00:34.2]} 45... Rxb6 {[%clk
0:00:14.5]} 46. Kxd5 {[%clk 0:00:34.8]} 46... Ke7 {[%clk 0:00:11.4]} 47. Ra4
{[%clk 0:00:28.8]} 47... Rb5+ {[%clk 0:00:10.1]} 48. Kd4 {[%clk 0:00:28]} 48...
Rb6 {[%clk 0:00:10.3]} 49. c4 {[%clk 0:00:28]} 49... Ke6 {[%clk 0:00:09.9]} 50.
Kc3 {[%clk 0:00:27]} 50... Rc6 {[%clk 0:00:09.1]} 51. Ra5 {[%clk 0:00:26.9]}
51... Rb6 {[%clk 0:00:07.8]} 52. b5 {[%clk 0:00:25.4]} 52... axb5 {[%clk
0:00:07.5]} 53. cxb5 {[%clk 0:00:26.3]} 53... Kd5 {[%clk 0:00:06.9]} 54. Kb4
{[%clk 0:00:26.9]} 54... Kd4 {[%clk 0:00:06.2]} 55. Ra3 {[%clk 0:00:27.1]} 55...
Rb8 {[%clk 0:00:05.7]} 56. Rb3 {[%clk 0:00:27.1]} 56... d5 {[%clk 0:00:05.7]}
57. Ra3 {[%clk 0:00:27.3]} 57... Rc8 {[%clk 0:00:05.3]} 58. b6 {[%clk
0:00:27.1]} 58... Rc4+ {[%clk 0:00:05.5]} 59. Kb5 {[%clk 0:00:27.4]} 59... Rc1
{[%clk 0:00:05.8]} 60. b7 {[%clk 0:00:27.2]} 60... Rb1+ {[%clk 0:00:06.1]} 61.
Kc6 {[%clk 0:00:27.7]} 61... Kc4 {[%clk 0:00:06.1]} 62. Ra4+ {[%clk 0:00:28.2]}
62... Kc3 {[%clk 0:00:05.9]} 63. Ra5 {[%clk 0:00:26.9]} 63... d4 {[%clk
0:00:03.6]} 64. Rb5 {[%clk 0:00:27]} 64... Rxb5 {[%clk 0:00:04.3]} 65. Kxb5
{[%clk 0:00:27.9]} 65... d3 {[%clk 0:00:05.1]} 66. b8=Q {[%clk 0:00:28.3]} 66...
d2 {[%clk 0:00:06]} 67. Qd6 {[%clk 0:00:27.4]} 67... Kc2 {[%clk 0:00:05.8]} 68.
Kb4 {[%clk 0:00:24.9]} 68... d1=Q {[%clk 0:00:05.5]} 69. Qxf6 {[%clk 0:00:23.5]}
69... Qd2+ {[%clk 0:00:04.4]} 70. Kc4 {[%clk 0:00:23.7]} 70... Kd1 {[%clk
0:00:04]} 71. Qd4 {[%clk 0:00:22.9]} 71... Qxd4+ {[%clk 0:00:02.5]} 72. Kxd4
{[%clk 0:00:23.8]} 72... Ke2 {[%clk 0:00:03]} 73. Ke4 {[%clk 0:00:24.3]} 73...
Kf2 {[%clk 0:00:03.5]} 74. f4 {[%clk 0:00:24.6]} 74... gxf4 {[%clk 0:00:02.3]}
75. Kxf4 {[%clk 0:00:25.1]} 75... Kg2 {[%clk 0:00:03]} 76. g5 {[%clk 0:00:26]}
76... Kxh3 {[%clk 0:00:03.4]} 77. g6 {[%clk 0:00:26.9]} 77... Kh2 {[%clk
0:00:03.5]} 78. g7 {[%clk 0:00:27.6]} 78... h3 {[%clk 0:00:04.2]} 79. g8=Q
{[%clk 0:00:27.9]} 79... Kh1 {[%clk 0:00:05]} 80. Kf3 {[%clk 0:00:28.5]} 80...
Kh2 {[%clk 0:00:03.8]} 81. Qg3+ {[%clk 0:00:28.9]} 81... Kh1 {[%clk 0:00:04.2]}
82. Qxh3+ {[%clk 0:00:29.8]} 82... Kg1 {[%clk 0:00:03.5]} 83. Qg2# {[%clk
0:00:30.7]} 1-0

[Event "Early-Titled-Tuesday-Blitz-March-26-2024"]
[Site "Chess.com"]
[Date "2024.03.26"]
[Round "2"]
[White "DrVelja"]
[Black "Goryachkina"]
[Result "1-0"]
[WhiteElo "3020"]
[BlackElo "2680"]
[TimeControl "180+1"]
[EndTime "8:19:19 PDT"]
[Termination "DrVelja won by resignation"]

1. e4 {[%clk 0:03:00.9]} 1... c5 {[%clk 0:02:58.3]} 2. Nf3 {[%clk 0:03:00.8]}
2... Nc6 {[%clk 0:02:58]} 3. Bb5 {[%clk 0:02:59.5]} 3... g6 {[%clk 0:02:57.3]}
4. O-O {[%clk 0:02:58.4]} 4... Bg7 {[%clk 0:02:56.4]} 5. Re1 {[%clk 0:02:59.1]}
5... Nf6 {[%clk 0:02:49.3]} 6. Bxc6 {[%clk 0:02:58]} 6... dxc6 {[%clk
0:02:46.4]} 7. d3 {[%clk 0:02:58.2]} 7... O-O {[%clk 0:02:45.3]} 8. h3 {[%clk
0:02:58.8]} 8... Nd7 {[%clk 0:02:42.7]} 9. e5 {[%clk 0:02:58.3]} 9... Nb6 {[%clk
0:02:29.5]} 10. b3 {[%clk 0:02:53]} 10... Nd5 {[%clk 0:02:18.9]} 11. Bb2 {[%clk
0:02:46.1]} 11... b6 {[%clk 0:02:05.5]} 12. Nbd2 {[%clk 0:02:45.3]} 12... h6
{[%clk 0:02:03.2]} 13. Nc4 {[%clk 0:02:37]} 13... Be6 {[%clk 0:02:00.1]} 14. Qd2
{[%clk 0:02:35.6]} 14... Qd7 {[%clk 0:01:56.3]} 15. Rad1 {[%clk 0:02:35.6]}
15... g5 {[%clk 0:01:33.3]} 16. Ne3 {[%clk 0:02:31.9]} 16... Nf4 {[%clk
0:01:29.7]} 17. h4 {[%clk 0:02:27.9]} 17... f6 {[%clk 0:01:04.3]} 18. Kh2 {[%clk
0:01:55.3]} 18... Bg4 {[%clk 0:00:59.8]} 19. Ng1 {[%clk 0:00:50.5]} 19... Bxd1
{[%clk 0:00:53.5]} 20. Qxd1 {[%clk 0:00:51.4]} 20... Nd5 {[%clk 0:00:30.1]} 21.
Nc4 {[%clk 0:00:49.8]} 21... Qf5 {[%clk 0:00:28.8]} 22. Qe2 {[%clk 0:00:45]}
22... Qf4+ {[%clk 0:00:27.8]} 23. g3 {[%clk 0:00:45.3]} 23... Qf5 {[%clk
0:00:27.4]} 24. Nf3 {[%clk 0:00:44.1]} 24... fxe5 {[%clk 0:00:23.9]} 25. Kg2
{[%clk 0:00:43.8]} 25... Qg4 {[%clk 0:00:18.7]} 26. Bc1 {[%clk 0:00:40.1]} 26...
Nf4+ {[%clk 0:00:06.6]} 27. Bxf4 {[%clk 0:00:39.8]} 27... exf4 {[%clk
0:00:06.5]} 28. hxg5 {[%clk 0:00:31.1]} 28... fxg3 {[%clk 0:00:06.5]} 29. fxg3
{[%clk 0:00:32]} 29... hxg5 {[%clk 0:00:06.7]} 30. Qe6+ {[%clk 0:00:29]} 30...
Qxe6 {[%clk 0:00:06.5]} 31. Rxe6 {[%clk 0:00:29.9]} 31... g4 {[%clk 0:00:06.9]}
32. Nh2 {[%clk 0:00:30.6]} 32... Rf6 {[%clk 0:00:06.8]} 33. Rxe7 {[%clk
0:00:30.9]} 33... Rg6 {[%clk 0:00:05.8]} 34. Re4 {[%clk 0:00:30]} 34... b5
{[%clk 0:00:05.4]} 35. Ne3 {[%clk 0:00:30.1]} 35... Rf8 {[%clk 0:00:04.9]} 36.
Nhxg4 {[%clk 0:00:29.6]} 36... Bd4 {[%clk 0:00:05.1]} 37. Nh2 {[%clk 0:00:19.4]}
37... Rgf6 {[%clk 0:00:04.4]} 38. Nhg4 {[%clk 0:00:17.6]} 38... Rg6 {[%clk
0:00:04.8]} 39. Re7 {[%clk 0:00:18]} 39... Rg7 {[%clk 0:00:04.9]} 40. Re6 {[%clk
0:00:18.1]} 40... Kh7 {[%clk 0:00:03.4]} 41. Rxc6 {[%clk 0:00:17.7]} 41... Rgf7
{[%clk 0:00:02.6]} 42. Re6 {[%clk 0:00:11.4]} 42... c4 {[%clk 0:00:01.8]} 43.
dxc4 {[%clk 0:00:11]} 43... bxc4 {[%clk 0:00:02.3]} 44. bxc4 {[%clk 0:00:11.9]}
44... Bxe3 {[%clk 0:00:02.6]} 45. Rxe3 {[%clk 0:00:11.3]} 45... Rf5 {[%clk
0:00:03]} 46. Re4 {[%clk 0:00:10.4]} 46... Ra5 {[%clk 0:00:03.2]} 47. Ne3 {[%clk
0:00:08.9]} 47... Rxa2 {[%clk 0:00:03.3]} 48. c5 {[%clk 0:00:09.6]} 48... Rc8
{[%clk 0:00:01.9]} 49. Rc4 {[%clk 0:00:09.7]} 49... a5 {[%clk 0:00:02.3]} 50. c6
{[%clk 0:00:08.8]} 50... a4 {[%clk 0:00:02.7]} 51. Nd5 {[%clk 0:00:08.9]} 51...
Rb2 {[%clk 0:00:02.8]} 52. c7 {[%clk 0:00:06.9]} 52... Rb7 {[%clk 0:00:02.7]}
53. Rxa4 {[%clk 0:00:06.6]} 53... Rb5 {[%clk 0:00:03]} 54. Rd4 {[%clk
0:00:06.3]} 54... Rc5 {[%clk 0:00:03.2]} 55. c4 {[%clk 0:00:06.5]} 55... Kg7
{[%clk 0:00:02.7]} 56. Kf3 {[%clk 0:00:07.1]} 56... Kf7 {[%clk 0:00:03.1]} 57.
g4 {[%clk 0:00:07.7]} 57... Ke6 {[%clk 0:00:03.4]} 58. Re4+ {[%clk 0:00:08.3]}
58... Kd6 {[%clk 0:00:03.7]} 59. g5 {[%clk 0:00:08.9]} 59... Rxd5 {[%clk
0:00:02.6]} 60. cxd5 {[%clk 0:00:09.1]} 60... Rxc7 {[%clk 0:00:02.6]} 61. Kg4
{[%clk 0:00:09]} 61... Kxd5 {[%clk 0:00:02.9]} 62. Re1 {[%clk 0:00:09.7]} 62...
Rc2 {[%clk 0:00:02.5]} 63. Kf5 {[%clk 0:00:09.7]} 63... Rf2+ {[%clk 0:00:02.8]}
64. Kg6 {[%clk 0:00:10.2]} 1-0

[Event "Early-Titled-Tuesday-Blitz-March-26-2024"]
[Site "Chess.com"]
[Date "2024.03.26"]
[Round "2"]
[White "AlmasRakhmatullaev"]
[Black "Andrei_Belozerov"]
[Result "1-0"]
[WhiteElo "2911"]
[BlackElo "2612"]
[TimeControl "180+1"]
[EndTime "8:19:22 PDT"]
[Termination "AlmasRakhmatullaev won by checkmate"]

1. e4 {[%clk 0:02:57.6]} 1... c5 {[%clk 0:02:59]} 2. Nf3 {[%clk 0:02:57.9]} 2...
Nc6 {[%clk 0:02:58.6]} 3. Bb5 {[%clk 0:02:57.8]} 3... g6 {[%clk 0:02:54]} 4.
Bxc6 {[%clk 0:02:57.9]} 4... bxc6 {[%clk 0:02:52.9]} 5. O-O {[%clk 0:02:55.1]}
5... Bg7 {[%clk 0:02:52.6]} 6. c3 {[%clk 0:02:55.6]} 6... Nf6 {[%clk 0:02:51.9]}
7. Re1 {[%clk 0:02:54.7]} 7... O-O {[%clk 0:02:49.8]} 8. h3 {[%clk 0:02:52.4]}
8... Rb8 {[%clk 0:02:30.9]} 9. d4 {[%clk 0:02:42.4]} 9... d5 {[%clk 0:02:29.9]}
10. exd5 {[%clk 0:02:40.5]} 10... cxd5 {[%clk 0:02:15.6]} 11. Ne5 {[%clk
0:02:26.8]} 11... Bb7 {[%clk 0:02:03]} 12. dxc5 {[%clk 0:02:21.9]} 12... Ne4
{[%clk 0:02:02]} 13. Nd3 {[%clk 0:02:17.5]} 13... Ba6 {[%clk 0:01:59.4]} 14. Nb4
{[%clk 0:02:10.1]} 14... Bb7 {[%clk 0:01:45.4]} 15. Be3 {[%clk 0:01:41.6]} 15...
a5 {[%clk 0:01:41.3]} 16. Nc2 {[%clk 0:01:31.8]} 16... Qc7 {[%clk 0:01:31.4]}
17. Nba3 {[%clk 0:01:19.3]} 17... Rfd8 {[%clk 0:01:17.2]} 18. Nb5 {[%clk
0:01:15.2]} 18... Qc6 {[%clk 0:01:15.2]} 19. Nbd4 {[%clk 0:01:10.5]} 19... Qc8
{[%clk 0:01:04.4]} 20. Nb3 {[%clk 0:00:54.5]} 20... a4 {[%clk 0:00:58.3]} 21.
Na5 {[%clk 0:00:55]} 21... Ba8 {[%clk 0:00:56.4]} 22. Nb4 {[%clk 0:00:51.2]}
22... Nxc5 {[%clk 0:00:50.2]} 23. Bxc5 {[%clk 0:00:48.6]} 23... Qxc5 {[%clk
0:00:49.5]} 24. Qxa4 {[%clk 0:00:49.2]} 24... d4 {[%clk 0:00:39.7]} 25. Nac6
{[%clk 0:00:43.9]} 25... dxc3 {[%clk 0:00:36.5]} 26. Nxd8 {[%clk 0:00:42.1]}
26... Rxd8 {[%clk 0:00:35.9]} 27. Rac1 {[%clk 0:00:36.5]} 27... Rd2 {[%clk
0:00:32]} 28. Qe8+ {[%clk 0:00:34.8]} 28... Bf8 {[%clk 0:00:31.9]} 29. Rf1
{[%clk 0:00:35.2]} 29... Qxb4 {[%clk 0:00:26.5]} 30. Qxa8 {[%clk 0:00:34.1]}
30... cxb2 {[%clk 0:00:26.3]} 31. Rb1 {[%clk 0:00:27.1]} 31... e5 {[%clk
0:00:23.7]} 32. a4 {[%clk 0:00:26.2]} 32... Kg7 {[%clk 0:00:22.8]} 33. a5 {[%clk
0:00:25.3]} 33... Bc5 {[%clk 0:00:22.7]} 34. a6 {[%clk 0:00:25.5]} 34... Qd4
{[%clk 0:00:21.6]} 35. Kh1 {[%clk 0:00:19.7]} 35... Rxf2 {[%clk 0:00:19.7]} 36.
Rxf2 {[%clk 0:00:18.9]} 36... Qxf2 {[%clk 0:00:19.8]} 37. Qf3 {[%clk 0:00:16.9]}
37... Qd4 {[%clk 0:00:19.3]} 38. Qd1 {[%clk 0:00:15]} 38... Qc3 {[%clk
0:00:18.2]} 39. Qe2 {[%clk 0:00:10.4]} 39... Bd4 {[%clk 0:00:18.1]} 40. Qf1
{[%clk 0:00:08.7]} 40... Qa3 {[%clk 0:00:17.1]} 41. Qc4 {[%clk 0:00:08.2]} 41...
Qa1 {[%clk 0:00:16.3]} 42. Qf1 {[%clk 0:00:07.5]} 42... Qa2 {[%clk 0:00:16.1]}
43. Kh2 {[%clk 0:00:07.8]} 43... h5 {[%clk 0:00:16]} 44. Qd1 {[%clk 0:00:06.2]}
44... h4 {[%clk 0:00:15.6]} 45. Qf1 {[%clk 0:00:06.6]} 45... Be3 {[%clk
0:00:15]} 46. Qd3 {[%clk 0:00:04.2]} 46... Bd4 {[%clk 0:00:13.6]} 47. Qe2 {[%clk
0:00:03.7]} 47... Kh7 {[%clk 0:00:13.4]} 48. Kh1 {[%clk 0:00:03.4]} 48... Kh6
{[%clk 0:00:13.2]} 49. Qf1 {[%clk 0:00:04.3]} 49... Kg7 {[%clk 0:00:13.2]} 50.
Qd3 {[%clk 0:00:04.8]} 50... f5 {[%clk 0:00:12]} 51. Qf1 {[%clk 0:00:03.8]}
51... Qa3 {[%clk 0:00:11.7]} 52. Qe1 {[%clk 0:00:04]} 52... Kf6 {[%clk
0:00:11.7]} 53. Qxh4+ {[%clk 0:00:04.3]} 53... Ke6 {[%clk 0:00:11.7]} 54. Qh6
{[%clk 0:00:02.3]} 54... Kf6 {[%clk 0:00:10]} 55. Qh8+ {[%clk 0:00:02.8]} 55...
Kf7 {[%clk 0:00:09.5]} 56. Qa8 {[%clk 0:00:02.8]} 56... Qa1 {[%clk 0:00:07.9]}
57. Qd5+ {[%clk 0:00:03.4]} 57... Kf6 {[%clk 0:00:07.7]} 58. Qc6+ {[%clk
0:00:03.4]} 58... Kg5 {[%clk 0:00:07.6]} 59. Qc2 {[%clk 0:00:03.3]} 59... e4
{[%clk 0:00:07.5]} 60. Qd2+ {[%clk 0:00:03.7]} 60... Kh5 {[%clk 0:00:06.6]} 61.
Qd1+ {[%clk 0:00:03.5]} 61... Kh6 {[%clk 0:00:06.4]} 62. Rxa1 {[%clk 0:00:04]}
62... bxa1=Q {[%clk 0:00:06.3]} 63. Qxa1 {[%clk 0:00:04.7]} 63... Bxa1 {[%clk
0:00:06.2]} 64. a7 {[%clk 0:00:05.3]} 64... Be5 {[%clk 0:00:06]} 65. a8=Q {[%clk
0:00:06.2]} 65... Bg7 {[%clk 0:00:06.4]} 66. Qe8 {[%clk 0:00:06.6]} 66... Kh7
{[%clk 0:00:06.2]} 67. g4 {[%clk 0:00:07.2]} 67... fxg4 {[%clk 0:00:05.4]} 68.
hxg4 {[%clk 0:00:07.5]} 68... Kh6 {[%clk 0:00:06.3]} 69. Qxe4 {[%clk 0:00:07.9]}
69... Kg5 {[%clk 0:00:06.1]} 70. Kg2 {[%clk 0:00:08.8]} 70... Kh4 {[%clk
0:00:06]} 71. Kf3 {[%clk 0:00:09.7]} 71... g5 {[%clk 0:00:06.1]} 72. Qh7+ {[%clk
0:00:09.7]} 72... Bh6 {[%clk 0:00:06]} 73. Qxh6# {[%clk 0:00:10.6]} 1-0

[Event "Early-Titled-Tuesday-Blitz-March-26-2024"]
[Site "Chess.com"]
[Date "2024.03.26"]
[Round "2"]
[White "MatyChess1"]
[Black "Andreikka"]
[Result "0-1"]
[WhiteElo "2645"]
[BlackElo "2959"]
[TimeControl "180+1"]
[EndTime "8:19:48 PDT"]
[Termination "Andreikka won on time"]

1. Nf3 {[%clk 0:03:00.9]} 1... c5 {[%clk 0:02:58.6]} 2. e4 {[%clk 0:02:59.9]}
2... e6 {[%clk 0:02:58.4]} 3. g3 {[%clk 0:02:59.1]} 3... a6 {[%clk 0:02:56.6]}
4. Bg2 {[%clk 0:02:59.4]} 4... b5 {[%clk 0:02:57.1]} 5. d4 {[%clk 0:02:59]} 5...
cxd4 {[%clk 0:02:56.6]} 6. Nxd4 {[%clk 0:02:59.9]} 6... Bb7 {[%clk 0:02:57.1]}
7. O-O {[%clk 0:03:00.6]} 7... Nc6 {[%clk 0:02:57.6]} 8. Nc3 {[%clk 0:02:52.3]}
8... h5 {[%clk 0:02:56.4]} 9. Re1 {[%clk 0:02:49.9]} 9... h4 {[%clk 0:02:56]}
10. Nd5 {[%clk 0:02:44.2]} 10... Rc8 {[%clk 0:02:47.4]} 11. Bf4 {[%clk
0:02:31.2]} 11... d6 {[%clk 0:02:45]} 12. a4 {[%clk 0:02:26.9]} 12... bxa4
{[%clk 0:01:37.9]} 13. Rxa4 {[%clk 0:02:12.2]} 13... hxg3 {[%clk 0:01:32.5]} 14.
hxg3 {[%clk 0:02:10.1]} 14... Ne5 {[%clk 0:01:25.8]} 15. Rb4 {[%clk 0:01:45.2]}
15... Ba8 {[%clk 0:01:25.8]} 16. Qa1 {[%clk 0:01:06.6]} 16... exd5 {[%clk
0:01:15]} 17. exd5 {[%clk 0:01:07.5]} 17... Be7 {[%clk 0:01:13.5]} 18. Qxa6
{[%clk 0:01:01.6]} 18... g6 {[%clk 0:01:00.7]} 19. Nc6 {[%clk 0:00:50.4]} 19...
Bxc6 {[%clk 0:00:59.8]} 20. dxc6 {[%clk 0:00:51.3]} 20... Nf6 {[%clk 0:00:59.4]}
21. Rb7 {[%clk 0:00:31.9]} 21... O-O {[%clk 0:00:56.5]} 22. b4 {[%clk 0:00:29]}
22... Nh5 {[%clk 0:00:44.5]} 23. Be3 {[%clk 0:00:20.3]} 23... Bg5 {[%clk
0:00:39.3]} 24. Bd4 {[%clk 0:00:14.8]} 24... Bd2 {[%clk 0:00:35]} 25. Re2 {[%clk
0:00:10.5]} 25... Qg5 {[%clk 0:00:34.3]} 26. b5 {[%clk 0:00:05.8]} 26... Rce8
{[%clk 0:00:32.2]} 27. Qa3 {[%clk 0:00:05.4]} 27... Bc1 {[%clk 0:00:19.7]} 28.
Qb3 {[%clk 0:00:05]} 28... Nf6 {[%clk 0:00:11.4]} 29. Bxe5 {[%clk 0:00:02.9]}
29... Rxe5 {[%clk 0:00:08.9]} 30. Qd3 {[%clk 0:00:01.9]} 30... d5 {[%clk
0:00:07.5]} 31. f4 {[%clk 0:00:02]} 31... Bxf4 {[%clk 0:00:06.5]} 32. gxf4
{[%clk 0:00:02.1]} 32... Qxf4 {[%clk 0:00:07.4]} 33. Rxe5 {[%clk 0:00:02.5]}
33... Qxe5 {[%clk 0:00:08.1]} 34. c7 {[%clk 0:00:02.2]} 34... Ng4 {[%clk
0:00:07.8]} 35. Qf3 {[%clk 0:00:01.2]} 35... Qe1+ {[%clk 0:00:04]} 36. Bf1
{[%clk 0:00:01.9]} 36... Qh4 {[%clk 0:00:03.6]} 37. Qg2 {[%clk 0:00:01.1]} 37...
Ne3 {[%clk 0:00:02.7]} 38. Rb8 {[%clk 0:00:01.3]} 38... Nxg2 {[%clk 0:00:02.5]}
39. Rxf8+ {[%clk 0:00:01.7]} 39... Kxf8 {[%clk 0:00:02.4]} 40. c8=Q+ {[%clk
0:00:02.4]} 40... Kg7 {[%clk 0:00:03.3]} 41. Bxg2 {[%clk 0:00:03.2]} 41... Qd4+
{[%clk 0:00:03.1]} 42. Kh1 {[%clk 0:00:03.3]} 42... Qd1+ {[%clk 0:00:03.3]} 43.
Kh2 {[%clk 0:00:03.5]} 43... Qh5+ {[%clk 0:00:03.7]} 44. Qh3 {[%clk 0:00:04.4]}
44... Qe5+ {[%clk 0:00:03.7]} 45. Qg3 {[%clk 0:00:04.7]} 45... Qh5+ {[%clk
0:00:04.2]} 46. Qh3 {[%clk 0:00:04.9]} 46... Qe5+ {[%clk 0:00:04.5]} 47. Qg3
{[%clk 0:00:05.8]} 47... Qh5+ {[%clk 0:00:05]} 48. Bh3 {[%clk 0:00:06.2]} 48...
Qe2+ {[%clk 0:00:05.1]} 49. Qg2 {[%clk 0:00:06.9]} 49... Qxb5 {[%clk 0:00:05.4]}
50. Bg4 {[%clk 0:00:06.5]} 50... Qc4 {[%clk 0:00:05.3]} 51. Kh1 {[%clk
0:00:05.2]} 51... Qf4 {[%clk 0:00:04.9]} 52. Bf3 {[%clk 0:00:05.5]} 52... d4
{[%clk 0:00:05.1]} 53. Be4 {[%clk 0:00:05.2]} 53... Qh4+ {[%clk 0:00:05]} 54.
Kg1 {[%clk 0:00:05.4]} 54... Qe1+ {[%clk 0:00:05.1]} 55. Kh2 {[%clk 0:00:06]}
55... f5 {[%clk 0:00:05.5]} 56. Bd3 {[%clk 0:00:03.5]} 56... Qe5+ {[%clk
0:00:05.7]} 57. Kg1 {[%clk 0:00:04]} 57... Kf6 {[%clk 0:00:05.8]} 58. Qf2 {[%clk
0:00:03.8]} 58... g5 {[%clk 0:00:04.6]} 59. Kf1 {[%clk 0:00:03.9]} 59... Kg6
{[%clk 0:00:04.8]} 60. Qg2 {[%clk 0:00:03.6]} 60... Qf4+ {[%clk 0:00:04.4]} 61.
Ke2 {[%clk 0:00:03.7]} 61... g4 {[%clk 0:00:04.8]} 62. Qc6+ {[%clk 0:00:03.5]}
62... Kg5 {[%clk 0:00:05.3]} 63. Qd7 {[%clk 0:00:02.7]} 63... Qe3+ {[%clk
0:00:05.6]} 64. Kd1 {[%clk 0:00:03]} 64... Qg1+ {[%clk 0:00:05.6]} 65. Ke2
{[%clk 0:00:03.1]} 65... Qe3+ {[%clk 0:00:05.6]} 66. Kd1 {[%clk 0:00:03.4]}
66... Qf3+ {[%clk 0:00:06.1]} 67. Kc1 {[%clk 0:00:03.3]} 67... g3 {[%clk
0:00:05.4]} 68. Qg7+ {[%clk 0:00:03]} 68... Kf4 {[%clk 0:00:04.9]} 69. Qh6+
{[%clk 0:00:03.4]} 69... Ke5 {[%clk 0:00:04.3]} 70. Qg7+ {[%clk 0:00:04.2]}
70... Kd6 {[%clk 0:00:02.2]} 71. Qf6+ {[%clk 0:00:04.4]} 71... Kc5 {[%clk
0:00:01.8]} 72. Qe5+ {[%clk 0:00:03.6]} 72... Kc6 {[%clk 0:00:01.6]} 73. Qb5+
{[%clk 0:00:02.9]} 73... Kd6 {[%clk 0:00:01.7]} 74. Qb6+ {[%clk 0:00:03.4]}
74... Ke7 {[%clk 0:00:02]} 75. Qc5+ {[%clk 0:00:03.5]} 75... Kf6 {[%clk
0:00:02.3]} 76. Qxd4+ {[%clk 0:00:03.8]} 76... Kg6 {[%clk 0:00:02.1]} 77. Qd6+
{[%clk 0:00:03.4]} 77... Kh5 {[%clk 0:00:02.8]} 0-1